bitfinex-derivatives/quotes_ETHF0:USTF0_20250902
["timestamp","ask_amount","ask_price","bid_price","bid_amount"]
[1756845565796,3.3338,4323.5,4322.9,3.2078]
[1756845566298,0.3218,4323.4,4322.9,3.2078]
[1756845566501,3.3338,4323.5,4322.9,3.2078]
[1756845566707,0.3218,4323.4,4322.9,3.2078]
[1756845567305,0.126,4323.5,4322.9,3.4578]
[1756845567505,0.3218,4323.4,4322.9,3.4578]
[1756845567905,0.126,4323.5,4322.9,3.4578]
[1756845568099,0.3218,4323.9,4322.9,3.4578]
[1756845568409,0.3218,4323.9,4323.0,0.35498408]
[1756845568611,0.3218,4323.9,4322.9,3.4578]
[1756845568806,0.3218,4323.9,4323.0,0.35497126]
[1756845569012,0.3218,4323.9,4322.9,3.4578]
[1756845569210,0.3218,4323.9,4323.0,0.35500946]
[1756845569514,0.3218,4323.9,4323.1,0.249]
[1756845570213,0.5343,4323.0,4322.9,3.2078]
[1756845570409,0.8561,4323.0,4322.9,3.2078]
[1756845571905,0.8561,4323.0,4321.5,41.21648]
[1756845571906,0.8561,4323.0,4322.3,3.2078]
[1756845572113,0.3218,4322.9,4322.4,0.249]
[1756845572714,0.126,4323.0,4322.4,0.249]
[1756845572908,0.2133,4322.5,4322.4,0.249]
[1756845573309,0.3218,4322.4,4322.3,3.2078]
[1756845573509,0.5351,4322.4,4322.3,3.4568]
[1756845573716,0.5351,4322.4,4322.3,3.2078]
[1756845573909,0.5351,4322.4,4322.3,3.4568]
[1756845574110,0.3218,4323.0,4322.3,3.4568]
[1756845574414,0.5351,4323.0,4322.3,3.4568]
[1756845574611,0.3218,4323.0,4322.3,3.4568]
[1756845575912,0.3218,4323.0,4322.4,0.35588256]
[1756845576113,0.3218,4323.0,4322.3,3.4568]
[1756845576313,0.3218,4323.0,4322.4,0.35586753]
[1756845576613,0.5351,4323.0,4322.3,3.4568]
[1756845576814,0.5351,4323.0,4322.4,0.35591347]
[1756845577015,0.5351,4323.0,4322.3,3.4568]
[1756845577214,0.5351,4323.0,4322.4,0.3559132]
[1756845577412,0.3218,4322.9,4322.5,0.3559132]
[1756845577613,3.2078,4323.4,4322.6,0.6039132]
[1756845577817,0.3218,4323.3,4322.6,0.248]
[1756845578222,0.3218,4323.3,4322.7,0.3560585]
[1756845578419,0.3218,4323.3,4322.6,0.248]
[1756845578611,0.3218,4323.3,4322.7,0.35605747]
[1756845578916,0.3218,4323.2,4323.1,3.2078]
[1756845579313,0.5351,4323.2,4323.1,3.2078]
[1756845581321,0.7301,4323.2,4323.1,3.56455693]
[1756845582213,0.7301,4323.2,4323.1,3.56491414]
[1756845583512,0.3218,4323.2,4323.1,3.56491414]
[1756845584120,0.5198,4323.2,4323.1,3.81191414]
[1756845584323,0.5198,4323.2,4323.1,4.16325679]
[1756845584521,0.3218,4323.2,4323.1,4.16325679]
[1756845585418,0.5198,4323.2,4323.1,4.16325679]
[1756845586018,0.7215,4323.2,4323.1,4.16325679]
[1756845586214,0.7215,4323.2,4323.1,4.37691712]
[1756845588624,0.7215,4323.2,4323.1,4.12991712]
[1756845589226,0.7215,4323.2,4323.1,5.18067998]
[1756845589827,0.5198,4323.2,4323.1,5.18067998]
[1756845590022,0.7215,4323.2,4323.1,5.18067998]
[1756845592230,0.7215,4323.2,4323.1,5.17967998]
[1756845593832,0.126,4324.0,4323.1,5.17967998]
[1756845594125,0.308,4323.6,4323.2,1.72587998]
[1756845594329,0.23129,4323.9,4323.3,1.16811712]
[1756845594330,0.308,4323.4,4323.3,1.16811712]
[1756845594525,0.506,4323.4,4323.3,1.16811712]
[1756845594834,0.7077,4323.4,4323.3,1.16811712]
[1756845595931,0.7077,4323.4,4323.3,0.57077447]
[1756845596635,0.7077,4323.4,4323.3,0.88327116]
[1756845597327,0.7077,4323.4,4323.3,0.57077447]
[1756845597833,0.7077,4323.4,4323.3,1.68706403]
[1756845598032,0.7077,4323.4,4323.3,0.57077447]
[1756845600224,0.7077,4323.4,4323.3,1.37453733]
[1756845600423,0.7077,4323.4,4323.3,0.57077447]
[1756845600623,0.1188,4323.0,4322.9,0.80376286]
[1756845600831,0.308,4323.4,4322.9,0.64084025]
[1756845601035,0.126,4324.0,4323.3,3.2078]
[1756845601234,0.198,4323.5,4323.4,0.32836128]
[1756845601433,0.198,4323.5,4323.3,3.2078]
[1756845601434,0.308,4323.4,4323.3,3.2078]
[1756845601828,0.506,4323.4,4323.3,3.2078]
[1756845602027,0.308,4323.3,4323.0,0.245]
[1756845602232,0.126,4324.0,4323.1,0.87369377]
[1756845602434,0.126,4324.0,4323.2,1.83840287]
[1756845602435,0.308,4323.9,4323.2,1.83840287]
[1756845602631,0.506,4323.4,4323.3,0.62875646]
[1756845603028,0.506,4323.4,4323.3,0.31589639]
[1756845603532,0.506,4323.4,4323.3,3.82566173]
[1756845603533,0.308,4323.4,4323.3,3.82566173]
[1756845603728,0.1188,4325.0,4323.3,7.82566173]
[1756845603729,0.308,4323.9,4323.3,7.82566173]
[1756845603929,0.308,4323.9,4322.3,40.8]
[1756845603930,3.2078,4325.4,4323.8,3.2078]
[1756845604135,0.4268,4326.0,4325.0,3.2078]
[1756845604441,0.7077,4325.6,4325.5,3.2078]
[1756845604634,0.7077,4325.6,4325.5,3.76969639]
[1756845605234,0.7077,4325.6,4325.5,3.2078]
[1756845605841,0.308,4325.6,4325.5,3.2078]
[1756845607639,0.308,4325.6,4325.5,3.4538]
[1756845609039,3.3266,4326.5,4325.5,3.4538]
[1756845609341,0.506,4326.4,4325.5,3.4538]
[1756845609638,3.3266,4326.5,4325.5,3.2078]
[1756845609844,0.7077,4325.7,4325.6,0.245]
[1756845610641,0.3997,4325.7,4325.5,3.2078]
[1756845610842,0.308,4325.6,4325.5,3.2078]
[1756845611042,0.506,4325.6,4325.5,3.4528]
[1756845611244,0.7077,4325.6,4325.5,3.2078]
[1756845611444,0.7077,4325.6,4325.5,3.4528]
[1756845612045,0.7077,4325.6,4325.5,3.2078]
[1756845612650,0.2043,4324.9,4324.8,3.2078]
[1756845612849,0.5185,4324.9,4324.8,3.4528]
[1756845613245,0.5185,4324.9,4324.8,3.2078]
[1756845613544,0.3142,4324.8,4324.2,3.2078]
[1756845613745,0.3142,4324.9,4324.3,0.245]
[1756845614347,0.3142,4325.4,4324.8,3.2078]
[1756845614552,0.5185,4325.8,4324.9,0.245]
[1756845615653,0.5185,4325.8,4324.8,3.2078]
[1756845615853,0.3142,4325.7,4324.9,0.245]
[1756845616053,0.3142,4325.6,4325.0,0.245]
[1756845616254,0.3142,4325.4,4325.0,0.245]
[1756845616454,0.3142,4325.3,4324.8,3.2078]
[1756845616650,0.3274,4325.5,4324.8,3.2078]
[1756845616851,0.2043,4325.4,4324.9,0.245]
[1756845617152,0.3142,4325.4,4325.0,0.245]
[1756845617355,0.3142,4325.3,4325.1,0.245]
[1756845617546,0.4131,4325.3,4325.2,0.245]
[1756845617754,0.7273,4325.3,4325.2,0.245]
[1756845617950,0.7273,4325.3,4324.8,3.2078]
[1756845617951,0.3142,4325.2,4325.1,0.245]
[1756845619154,0.5185,4325.2,4325.1,0.245]
[1756845619358,0.3142,4325.2,4325.1,0.245]
[1756845619742,0.1231,4325.5,4325.0,0.245]
[1756845619743,0.2088,4325.1,4325.0,0.245]
[1756845619951,0.5185,4325.1,4325.0,0.245]
[1756845620153,0.7273,4325.1,4325.0,0.245]
[1756845620550,0.2043,4324.9,4324.8,3.2078]
[1756845620753,0.7273,4324.9,4324.8,3.4528]
[1756845621143,0.1231,4324.5,4324.2,3.2078]
[1756845621343,0.3142,4324.2,4323.7,3.4528]
[1756845621543,0.7273,4323.8,4323.7,3.4528]
[1756845621948,0.7273,4323.8,4323.7,3.2078]
[1756845622156,0.5185,4323.8,4323.7,3.2078]
[1756845623453,0.4131,4323.8,4323.1,3.2078]
[1756845623650,0.3142,4323.2,4323.1,3.2078]
[1756845623856,0.3142,4323.2,4323.1,3.4528]
[1756845624558,0.1231,4324.0,4323.1,3.4528]
[1756845624747,0.3142,4323.9,4323.1,3.4528]
[1756845625151,0.1231,4324.0,4323.1,3.4528]
[1756845625456,0.3142,4323.9,4323.1,3.4528]
[1756845625758,0.1231,4324.0,4323.1,3.4528]
[1756845626258,0.3142,4323.9,4323.1,3.4528]
[1756845626559,0.5185,4323.2,4323.1,3.2078]
[1756845626751,0.5185,4323.2,4323.1,3.4528]
[1756845626951,0.7273,4323.2,4323.1,3.4528]
[1756845627458,0.7273,4323.2,4322.6,3.2078]
[1756845627459,0.4131,4322.7,4322.6,3.2078]
[1756845627762,0.7273,4322.7,4322.6,3.2078]
[1756845627956,0.7273,4322.7,4320.8,2.04330232]
[1756845627957,4.0,4322.7,4321.9,3.2078]
[1756845628156,0.8504,4322.0,4321.9,3.2078]
[1756845628560,0.8504,4322.0,4321.8,0.245]
[1756845628761,0.3142,4321.9,4321.8,0.245]
[1756845628955,0.7273,4321.9,4321.8,0.245]
[1756845629159,0.3142,4321.8,4321.7,0.245]
[1756845629461,0.3142,4321.8,4320.9,30.534]
[1756845629462,0.4131,4321.8,4320.9,3.2078]
[1756845629759,0.8504,4321.0,4320.9,3.2078]
[1756845630058,0.8504,4321.0,4319.0,32.16276232]
[1756845630059,0.2043,4320.6,4320.5,3.2078]
[1756845630259,0.7273,4320.6,4320.5,3.2078]
[1756845630458,0.7273,4320.6,4320.3,0.245]
[1756845630766,0.7273,4320.6,4320.0,3.2078]
[1756845630767,0.1231,4320.5,4320.0,3.2078]
[1756845630959,0.3142,4320.4,4320.1,0.245]
[1756845631259,0.1231,4320.5,4320.2,0.245]
[1756845631464,0.4131,4320.3,4320.0,3.2078]
[1756845631668,0.3142,4320.2,4320.1,0.245]
[1756845632160,0.1231,4320.5,4320.0,3.2078]
[1756845632161,0.3142,4320.1,4320.0,3.2078]
[1756845632358,0.3142,4320.1,4320.0,3.4528]
[1756845633264,0.3142,4320.1,4318.7,1.21975437]
[1756845633265,0.3142,4319.9,4318.3,1.21975437]
[1756845633460,0.1231,4320.0,4319.3,3.2078]
[1756845633664,0.1231,4320.0,4319.3,3.4528]
[1756845633861,0.3142,4319.9,4319.3,3.4528]
[1756845634464,0.3142,4320.9,4319.8,3.2078]
[1756845634660,0.3142,4321.1,4320.4,3.2078]
[1756845634861,3.2078,4321.3,4320.5,0.245]
[1756845635168,3.522,4321.3,4320.5,0.245]
[1756845636062,3.2078,4321.3,4320.6,0.23142999]
[1756845636260,0.3142,4321.9,4321.2,3.2078]
[1756845636456,0.3142,4321.9,4321.3,0.245]
[1756845636855,0.1231,4322.0,4321.7,3.2078]
[1756845637060,0.3142,4321.9,4321.7,3.2078]
[1756845637263,0.3142,4321.9,4321.6,0.245]
[1756845637654,0.1231,4322.0,4321.7,3.2078]
[1756845638467,0.3142,4321.9,4321.7,3.2078]
[1756845638967,3.2078,4322.8,4321.7,3.2078]
[1756845638968,0.3142,4322.9,4321.9,0.41644]
[1756845639173,0.3142,4323.4,4322.8,3.2078]
[1756845639362,0.1231,4324.0,4323.3,3.2078]
[1756845639363,0.3142,4323.9,4323.3,3.2078]
[1756845639562,0.3142,4323.9,4323.1,3.2078]
[1756845639764,0.1231,4324.0,4323.1,3.2078]
[1756845639963,0.3142,4323.4,4323.2,0.245]
[1756845640165,0.1231,4323.5,4323.2,0.245]
[1756845640363,0.1231,4323.5,4323.3,0.245]
[1756845640569,0.3142,4323.4,4323.3,0.245]
[1756845642667,0.1231,4323.5,4323.1,3.2078]
[1756845642970,0.298,4323.4,4323.3,0.245]
[1756845646968,0.4918,4323.4,4323.3,0.245]
[1756845647172,0.6981,4323.4,4323.3,0.245]
[1756845649079,0.298,4324.1,4323.3,4.4763]
[1756845649268,0.298,4324.9,4324.0,3.2078]
[1756845649467,0.1289,4325.5,4324.5,3.2078]
[1756845649666,0.4918,4324.7,4324.6,0.245]
[1756845649875,0.6981,4324.7,4324.6,0.245]
[1756845658673,0.298,4324.6,4324.5,3.2078]
[1756845658875,0.6981,4324.6,4324.5,3.4518]
[1756845660277,0.6981,4324.6,4324.5,3.2078]
[1756845660469,0.4001,4324.6,4324.5,0.243]
[1756845661076,0.6981,4324.6,4324.5,0.243]
[1756845661473,0.1289,4324.5,4324.4,3.2078]
[1756845661779,0.827,4324.5,4324.4,3.4508]
[1756845662272,0.827,4324.5,4324.4,0.243]
[1756845664571,0.827,4324.5,4324.4,3.4508]
[1756845664774,0.827,4324.5,4324.4,0.243]
[1756845666474,0.298,4324.4,4323.9,3.2078]
[1756845666676,0.6981,4324.4,4324.3,0.243]
[1756845670275,0.4001,4324.4,4324.0,1.21975437]
[1756845670482,0.298,4324.0,4323.9,3.2078]
[1756845670681,0.298,4325.0,4324.0,0.41624]
[1756845670874,0.298,4325.0,4324.9,3.2078]
[1756845671180,0.298,4325.0,4324.9,3.73685557]
[1756845671479,0.298,4325.0,4324.9,4.95338276]
[1756845671873,0.8209,4325.0,4324.9,4.66732719]
[1756845672076,0.5086,4325.0,4324.9,3.4508]
[1756845672274,0.298,4325.0,4324.9,3.4508]
[1756845672675,0.3027,4325.4,4324.9,3.4508]
[1756845672880,0.3027,4325.9,4324.9,3.4508]
[1756845673067,0.3027,4325.9,4324.9,4.66732719]
[1756845673272,0.7085,4325.7,4325.6,3.2078]
[1756845673470,0.2106,4326.2,4325.6,3.2078]
[1756845673678,0.2106,4326.2,4324.4,1.62676232]
[1756845673679,0.3027,4326.8,4325.9,3.2078]
[1756845673980,0.3027,4326.7,4326.6,3.2078]
[1756845674181,0.7085,4326.7,4326.6,3.4508]
[1756845674673,0.3027,4326.7,4326.6,3.4508]
[1756845675272,0.1171,4327.5,4326.6,3.4508]
[1756845675470,0.7085,4327.3,4327.2,3.2078]
[1756845675880,0.7085,4327.3,4327.0,0.243]
[1756845676070,0.4058,4327.3,4326.6,3.2078]
[1756845676270,0.7085,4326.8,4326.7,0.243]
[1756845677381,0.3027,4326.7,4326.6,3.2078]
[1756845677571,0.7085,4326.7,4326.6,3.2078]
[1756845677774,0.7085,4326.7,4326.6,3.4508]
[1756845678585,0.0039272,4329.0,4326.6,7.96685464]
[1756845678586,0.3027,4327.4,4326.6,7.96685464]
[1756845678785,0.3027,4327.4,4327.3,3.2078]
[1756845678985,0.3027,4327.4,4327.3,3.4518]
[1756845679175,0.3027,4327.9,4327.3,3.4518]
[1756845679378,0.3027,4327.9,4327.8,3.2078]
[1756845679585,0.3027,4327.9,4327.8,3.4518]
[1756845681377,0.7085,4327.9,4327.8,3.2078]
[1756845681784,0.7085,4327.9,4327.8,3.4518]
[1756845681985,0.7085,4327.9,4327.8,0.244]
[1756845682380,0.7085,4327.9,4327.6,0.244]
[1756845682381,0.4058,4327.9,4327.6,0.244]
[1756845682576,0.4058,4327.9,4327.3,3.2078]
[1756845682577,0.1171,4328.0,4327.5,0.243]
[1756845682784,0.3027,4327.9,4327.8,3.2078]
[1756845683086,0.3027,4327.9,4327.8,3.4508]
[1756845683286,0.5133,4327.9,4327.8,3.4508]
[1756845685791,0.3027,4328.3,4327.8,3.4508]
[1756845685992,0.3027,4328.4,4327.8,3.4508]
[1756845686192,0.5133,4328.3,4327.8,3.4508]
[1756845686392,0.3027,4328.2,4327.8,3.2078]
[1756845686591,3.2078,4328.8,4327.8,3.2078]
[1756845686894,0.5133,4327.9,4327.8,3.2078]
[1756845687082,0.1171,4327.5,4326.8,3.2078]
[1756845687287,0.7085,4326.9,4326.8,3.2078]
[1756845687487,0.7085,4326.9,4326.8,3.4508]
[1756845688090,0.7085,4326.9,4326.8,3.2078]
[1756845688292,0.7085,4326.9,4326.8,3.4508]
[1756845688492,0.7085,4326.9,4326.8,3.2078]
[1756845688790,0.1171,4327.0,4326.3,0.243]
[1756845688791,0.4058,4326.7,4326.3,0.243]
[1756845688989,0.7085,4326.4,4326.3,0.243]
[1756845689496,0.4058,4326.4,4326.1,3.2078]
[1756845689692,0.5133,4326.3,4326.2,0.243]
[1756845690292,0.3027,4326.2,4326.1,3.2078]
[1756845690499,0.3027,4326.2,4326.1,3.4508]
[1756845690690,0.5133,4326.2,4326.1,3.4508]
[1756845690998,0.7085,4326.2,4326.1,3.4508]
[1756845691190,0.7085,4326.2,4326.1,3.2078]
[1756845691391,0.1171,4326.0,4325.9,0.243]
[1756845691597,0.1171,4326.0,4325.7,0.243]
[1756845691598,0.4058,4325.8,4325.7,0.243]
[1756845691901,0.3027,4325.7,4325.5,3.4508]
[1756845692093,0.7085,4325.6,4325.5,3.2078]
[1756845692394,0.1171,4326.0,4324.9,3.2078]
[1756845692395,0.7085,4325.2,4324.9,3.2078]
[1756845692592,0.3027,4324.9,4324.6,0.243]
[1756845692790,0.7085,4324.7,4324.6,0.243]
[1756845693191,3.2078,4325.9,4324.6,0.243]
[1756845693192,0.3027,4325.4,4324.6,4.47423]
[1756845693498,0.3027,4325.4,4325.3,3.2078]
[1756845693794,0.3027,4325.4,4325.3,3.4518]
[1756845694589,0.5133,4325.4,4325.3,3.4518]
[1756845694986,0.5133,4325.4,4325.3,3.2078]
[1756845695192,0.5133,4325.4,4325.3,3.4518]
[1756845695495,0.3027,4325.4,4325.3,3.4518]
[1756845696095,0.7085,4325.4,4325.3,3.2078]
[1756845696394,4.4058,4325.4,4324.7,3.2078]
[1756845696587,0.7085,4324.8,4324.7,3.2078]
[1756845697799,0.7085,4324.8,4324.7,3.49250563]
[1756845699596,0.3027,4324.8,4324.7,3.49250563]
[1756845699897,0.1171,4327.0,4325.2,0.41612]
[1756845700103,0.1171,4327.0,4324.7,7.96673563]
[1756845700104,0.3027,4326.4,4326.3,3.2078]
[1756845700291,0.3027,4326.9,4326.3,3.73550563]
[1756845700497,0.1171,4327.0,4326.4,0.28453372]
[1756845700698,0.1171,4327.0,4326.3,3.4508]
[1756845700699,0.1171,4327.0,4326.5,0.52853372]
[1756845700897,0.3027,4326.9,4326.6,0.28453372]
[1756845701103,0.1166,4326.5,4326.3,3.2078]
[1756845701399,0.3184,4326.4,4326.3,3.2078]
[1756845701596,0.3184,4326.4,4326.3,0.28464329]
[1756845702893,0.3184,4326.4,4326.3,3.49244329]
[1756845703098,4.3184,4326.4,4326.3,3.49244329]
[1756845703295,4.3184,4326.4,4323.0,0.23002568]
[1756845703296,4.23114,4326.4,4325.6,3.2078]
[1756845703503,0.3184,4325.9,4325.7,0.28484919]
[1756845703705,0.1166,4326.0,4325.6,3.2078]
[1756845704006,0.3184,4325.9,4325.6,3.2078]
[1756845704203,0.3184,4326.6,4325.7,0.244]
[1756845704503,0.3184,4326.6,4326.5,3.2078]
[1756845707102,0.1171,4327.5,4326.5,3.4518]
[1756845707702,0.3184,4326.9,4326.5,3.4518]
[1756845708204,0.3184,4326.9,4326.5,3.2078]
[1756845708508,0.3184,4326.9,4325.9,0.244]
[1756845708719,0.1166,4326.5,4325.9,0.244]
[1756845709009,0.1166,4326.5,4326.4,3.2078]
[1756845709010,0.435,4326.5,4326.4,3.2078]
[1756845709212,3.2078,4327.2,4326.0,1.27128]
[1756845709406,3.3283272,4329.0,4327.1,3.2078]
[1756845709603,0.1205272,4329.0,4327.7,3.2078]
[1756845709803,0.435,4328.5,4328.4,3.2078]
[1756845710004,0.435,4328.5,4328.4,3.52199571]
[1756845712217,0.435,4328.5,4328.4,0.31419571]
[1756845712712,4.435,4328.5,4328.4,0.31419571]
[1756845714214,4.683,4328.5,4328.4,0.31419571]
[1756845714809,4.683,4328.5,4327.4,0.149]
[1756845715010,0.3184,4328.4,4327.2,3.2078]
[1756845715206,3.2078,4328.3,4327.2,3.2078]
[1756845715516,0.3184,4328.2,4327.2,3.2078]
[1756845715810,0.435,4328.0,4327.2,3.2078]
[1756845716016,0.3184,4327.4,4326.6,3.2078]
[1756845716516,0.3184,4327.3,4326.6,3.2078]
[1756845716817,3.2078,4327.3,4326.1,3.2078]
[1756845717114,0.3184,4327.2,4325.7,0.3135]
[1756845717714,3.2078,4326.8,4325.7,0.3135]
[1756845717915,0.3184,4326.7,4326.1,3.5213]
[1756845718317,3.5262,4327.5,4326.7,0.3135]
[1756845719913,3.5262,4327.5,4326.7,0.5625]
[1756845720111,3.5262,4327.5,4326.8,0.3135]
[1756845720516,3.2078,4327.5,4326.8,0.3135]
[1756845720712,3.5262,4327.5,4326.8,0.3135]
[1756845721321,3.3244,4327.5,4326.6,3.2078]
[1756845721519,0.3184,4327.4,4326.6,3.2078]
[1756845722019,3.2078,4327.5,4326.6,3.2078]
[1756845722213,3.2078,4327.5,4326.7,0.3135]
[1756845722816,0.3184,4327.9,4327.2,3.2078]
[1756845723821,0.5674,4327.9,4327.2,3.2078]
[1756845724420,0.3184,4327.9,4327.2,3.2078]
[1756845724619,0.5674,4327.9,4327.2,3.2078]
[1756845725423,0.3184,4328.5,4327.8,3.52]
[1756845727324,0.3184,4328.5,4326.9,40.8]
[1756845727325,0.1166,4327.5,4326.8,3.2078]
[1756845727526,0.3184,4327.3,4326.8,3.2078]
[1756845727715,0.3184,4327.3,4326.9,0.3122]
[1756845727919,0.3184,4327.3,4326.8,3.2078]
[1756845728116,0.3184,4327.3,4326.9,0.3122]
[1756845728514,0.181,4327.5,4326.9,0.3122]
[1756845728515,0.3184,4327.5,4326.9,0.3122]
[1756845728721,0.249,4327.6,4326.9,0.3122]
[1756845728928,0.249,4327.6,4327.4,0.3122]
[1756845729127,0.3184,4328.3,4327.5,0.3122]
[1756845732826,0.3073,4328.7,4328.0,0.3128]
[1756845733222,3.2078,4328.8,4327.9,3.2078]
[1756845733427,0.1216,4328.5,4327.9,3.2078]
[1756845733623,0.249,4328.7,4327.9,3.2078]
[1756845733827,0.5563,4328.7,4328.0,0.3128]
[1756845734130,0.0039272,4329.0,4328.1,3.2078]
[1756845734327,0.0039272,4329.0,4328.2,0.3128]
[1756845735231,0.0039272,4329.0,4327.7,0.18453681]
[1756845735232,0.3073,4329.9,4328.9,0.1428]
[1756845735424,0.3073,4329.4,4328.8,3.2078]
[1756845736026,0.1216,4330.0,4328.8,3.2078]
[1756845736331,0.3073,4329.9,4328.8,3.2078]
[1756845736717,3.2078,4329.9,4328.8,3.2078]
[1756845736927,0.3073,4329.8,4328.8,3.4588]
[1756845737630,3.2078,4329.9,4328.8,3.4588]
[1756845738127,0.23098001,4329.8,4328.8,3.2078]
[1756845738328,0.23098001,4329.8,4328.3,3.2078]
[1756845738329,0.3073,4328.9,4328.3,3.2078]
[1756845738626,0.3073,4328.9,4328.3,3.3467]
[1756845738831,0.193,4329.3,4328.3,3.2078]
[1756845739019,0.3073,4329.3,4328.3,3.2078]
[1756845739222,0.1216,4329.0,4328.3,3.2078]
[1756845739422,0.1216,4329.0,4328.4,0.45094031]
[1756845739423,0.4289,4329.0,4328.4,0.45094031]
[1756845739624,0.3073,4329.4,4328.5,3.51984031]
[1756845739823,0.3073,4329.4,4328.6,0.31204031]
[1756845740126,0.3073,4329.4,4328.7,0.31204031]
[1756845740333,0.3073,4329.4,4328.8,0.45094031]
[1756845740530,0.3073,4329.4,4328.9,0.31204031]
[1756845740833,0.3073,4329.8,4329.0,0.31204031]
[1756845741131,0.3073,4329.8,4329.1,0.31204031]
[1756845741335,0.1216,4329.5,4329.2,0.31204031]
[1756845741527,0.3073,4329.4,4329.3,0.31204031]
[1756845741726,3.74609,4329.4,4329.3,0.31204031]
[1756845741928,3.74609,4329.4,4328.0,3.2078]
[1756845741929,3.92703724,4329.4,4328.0,3.2078]
[1756845742131,3.92703724,4329.4,4327.7,0.1389]
[1756845742132,0.3073,4329.2,4327.7,0.3206]
[1756845742323,3.2078,4328.9,4327.5,3.2078]
[1756845742523,0.3073,4327.9,4327.5,3.2078]
[1756845742731,3.5814,4328.0,4326.8,3.5284]
[1756845743029,0.3073,4327.9,4326.8,3.5284]
[1756845743229,3.5814,4328.0,4326.8,0.3206]
[1756845743429,0.3073,4327.8,4326.8,0.3206]
[1756845743625,0.252,4327.7,4326.8,3.5284]
[1756845743830,0.3073,4327.6,4326.8,3.5284]
[1756845744131,0.3073,4327.6,4326.8,3.2078]
[1756845744335,0.3073,4327.6,4326.9,0.3206]
[1756845744530,3.5151,4328.0,4326.9,0.3206]
[1756845745037,0.1216,4328.5,4327.4,0.3206]
[1756845745038,3.5151,4328.5,4327.4,0.3206]
[1756845745626,3.6367,4328.5,4327.4,0.3206]
[1756845746423,0.3073,4328.4,4326.9,0.3206]
[1756845746624,0.3073,4327.9,4326.9,0.3206]
[1756845746931,3.3294,4328.0,4326.8,3.2078]
[1756845746932,0.252,4327.8,4326.8,3.2078]
[1756845747239,0.3073,4327.3,4326.5,0.3206]
[1756845747536,0.3073,4326.9,4326.2,3.2078]
[1756845747734,0.3073,4326.8,4326.2,3.2078]
[1756845747932,0.3073,4326.8,4325.7,3.2078]
[1756845748136,3.5151,4326.3,4325.7,3.2078]
[1756845749234,0.251,4326.8,4325.8,0.3206]
[1756845749928,0.3073,4327.4,4326.4,0.3206]
[1756845750134,0.251,4327.3,4326.4,0.3206]
[1756845750333,3.2078,4327.5,4327.0,0.3206]
[1756845750535,3.2078,4327.5,4326.9,3.5284]
[1756845750736,3.2078,4327.5,4326.9,3.2078]
[1756845750937,3.3294,4327.5,4326.9,3.2078]
[1756845751134,0.3073,4327.4,4326.9,3.2078]
[1756845751336,3.3294,4327.5,4326.9,3.2078]
[1756845752139,0.251,4327.4,4326.9,3.2078]
[1756845752335,0.3073,4327.3,4326.9,3.2078]
[1756845752538,3.2078,4327.5,4326.9,3.2078]
[1756845752735,0.3073,4327.4,4326.3,0.3206]
[1756845752939,0.251,4327.3,4326.3,0.3206]
[1756845753141,0.3073,4327.2,4326.3,0.3206]
[1756845753436,3.2078,4326.4,4325.7,3.2078]
[1756845753936,3.2078,4326.4,4325.8,0.3206]
[1756845754237,3.2078,4326.4,4325.7,3.2078]
[1756845754444,0.3073,4326.3,4325.7,3.2078]
[1756845754742,0.3073,4326.1,4325.1,0.3206]
[1756845755643,0.3073,4326.1,4325.6,0.3206]
[1756845755939,0.3073,4326.1,4325.5,3.5284]
[1756845756341,0.3073,4326.1,4325.5,3.2078]
[1756845756644,0.251,4326.2,4325.0,3.5284]
[1756845757137,0.3073,4325.8,4325.0,3.5284]
[1756845757342,0.3073,4325.6,4325.0,3.5284]
[1756845758142,0.3073,4325.6,4324.5,0.3206]
[1756845758838,0.3073,4325.4,4324.5,0.3206]
[1756845759037,3.5151,4325.4,4324.5,0.3206]
[1756845759240,3.5151,4325.4,4324.4,3.2078]
[1756845759439,0.3073,4325.2,4324.4,3.2078]
[1756845759734,0.3073,4325.0,4324.4,3.2078]
[1756845760546,0.4289,4325.0,4324.4,3.2078]
[1756845760752,0.251,4324.9,4324.4,3.2078]
[1756845760939,0.251,4324.9,4324.1,0.3206]
[1756845760940,0.3073,4324.8,4324.1,0.3206]
[1756845761447,3.5151,4324.8,4324.1,0.3206]
[1756845761846,0.2999,4324.7,4323.8,3.2078]
[1756845762049,0.2999,4324.7,4323.9,0.2987]
[1756845762251,3.2078,4324.8,4323.9,0.2987]
[1756845762661,0.251,4324.9,4324.3,3.2078]
[1756845762955,0.251,4325.1,4324.4,0.2987]
[1756845763355,3.2078,4325.3,4324.4,0.2987]
[1756845764152,3.2078,4325.3,4324.4,0.48221999]
[1756845764353,3.2078,4325.3,4324.5,0.2987]
[1756845764654,0.1159,4327.0,4325.0,0.2987]
[1756845764655,3.4588,4325.9,4325.0,0.2987]
[1756845765553,0.2999,4325.8,4325.0,0.2987]
[1756845765858,0.5499,4325.8,4325.0,0.2987]
[1756845767057,3.4578,4325.9,4325.0,0.2987]
[1756845767255,3.7577,4325.9,4325.0,0.2987]
[1756845770560,0.2999,4325.8,4325.1,5.335]
[1756845770853,3.4578,4325.9,4325.1,5.335]
[1756845771055,0.2999,4325.8,4325.1,5.335]
[1756845771453,3.4578,4325.9,4324.9,3.2078]